fUSD/lending_fUSD_20240620
["ID","MTS","AMOUNT","RATE_DAILY","PERIOD"]
[329987565,1718899946159,-1000.0,0.00027444,30]
[329987566,1718899946182,-1000.0,0.00027444,30]
[329987567,1718899946204,-1000.0,0.00027444,30]
[329987568,1718899946226,-1000.0,0.00027444,30]
[329987569,1718899946249,-1000.0,0.00027444,30]
[329987570,1718899946277,-1000.0,0.00027444,30]
[329987571,1718899946300,-1473.290509,0.00027444,30]
[329987572,1718899946323,-200.0,0.00027444,30]
[329987573,1718899946346,-200.0,0.00027444,30]
[329987574,1718899946369,-200.0,0.00027444,30]
[329987575,1718899946393,-200.0,0.00027444,30]
[329987576,1718899946416,-344.490669,0.00027444,30]
[329987577,1718899946440,-200.0,0.00027444,30]
[329987578,1718899946464,-200.0,0.00027444,30]
[329987579,1718899946489,-202.36351,0.00027444,30]
[329987580,1718899951015,500.0,0.00027444,30]
[329987581,1718899951199,160.0,0.00027444,30]
[329987582,1718899951897,230.64165649,0.00010934,2]
[329987583,1718899955797,-1579.62,0.00018849,30]
[329987584,1718899955847,-319.92805198,0.0002,30]
[329987585,1718899955875,-151.0,0.0002008,30]
[329987586,1718899955913,-152.0,0.00022258,30]
[329987587,1718899955940,-152.0,0.00022448,31]
[329987588,1718899955965,-152.0,0.00022639,32]
[329987589,1718899955990,-152.0,0.00022829,33]
[329987590,1718899956019,-152.0,0.00023019,34]
[329987591,1718899956048,-152.0,0.0002321,35]
[329987592,1718899956074,-152.0,0.000234,36]
[329987593,1718899956103,-1579.62,0.00023831,30]
[329987594,1718899956153,-789.93892694,0.00025,30]
[329987595,1718899956182,-1208.0,0.00025129,30]
[329987596,1718899956213,-2000.0,0.00026,30]
[329987597,1718899956238,-2500.0,0.00026,60]
[329987598,1718899956272,-150.0,0.00026893,120]
[329987599,1718899956301,-1524.66611663,0.000269,30]
[329987600,1718899956328,-150.0,0.00027287,120]
[329987601,1718899956353,-256.29891386,0.0002736,120]
[329987602,1718899956377,-292.30641192,0.0002739,30]
[329987603,1718899956406,-800.0,0.00027397,100]
[329987604,1718899956430,-800.0,0.00027397,100]
[329987605,1718899956454,-800.0,0.00027397,100]
[329987606,1718899956477,-800.0,0.00027397,100]
[329987607,1718899956503,-800.0,0.00027397,100]
[329987608,1718899956526,-800.0,0.00027397,100]
[329987609,1718899956553,-800.0,0.00027397,100]
[329987610,1718899956576,-800.0,0.00027397,100]
[329987611,1718899956601,-800.0,0.00027397,100]
[329987612,1718899956627,-884.33222176,0.00027397,100]
[329987613,1718899956650,-237.74,0.00027397,30]
[329987614,1718899956672,-200.0,0.00027397,60]
[329987615,1718899956715,-319.939499,0.00027499,120]
[329987616,1718899956740,-200.0,0.00027511,120]
[329987617,1718899956763,-237.74,0.00027534,30]
[329987618,1718899956788,-1000.0,0.00027548,120]
[329987619,1718899956811,-237.74,0.00027671,30]
[329987620,1718899956836,-237.74,0.00027808,30]
[329987621,1718899956860,-150.0,0.00027882,120]
[329987622,1718899956884,-200.0,0.00027889,120]
[329987623,1718899956908,-237.74,0.00027945,30]
[329987624,1718899956932,-171.7,0.00027945,91]
[329987625,1718899956956,-1799.48990321,0.00028,30]
[329987626,1718899956979,-250.4341119,0.00028,30]
[329987627,1718899957004,-971.91433476,0.00028055,30]
[329987628,1718899957028,-237.74,0.00028082,30]
[329987629,1718899957055,-971.91433476,0.00028164,30]
[329987630,1718899957078,-237.74,0.00028219,30]
[329987631,1718899957102,-200.0,0.00028267,120]
[329987632,1718899957126,-971.91433476,0.00028301,30]
[329987633,1718899957149,-1000.0,0.00028323,120]
[329987634,1718899957173,-237.74,0.00028356,30]
[329987635,1718899957196,-971.91433476,0.00028411,30]
[329987636,1718899957220,-150.0,0.00028434,120]
[329987637,1718899957243,-237.74,0.00028493,30]
[329987638,1718899957267,-289.99976298,0.000285,120]
[329987639,1718899957294,-971.91433476,0.00028521,30]
[329987640,1718899957547,-237.74,0.0002863,30]
[329987641,1718899957577,-200.0,0.00028645,120]
[329987642,1718899957605,-971.91433476,0.00028658,30]
[329987643,1718899957630,-237.74,0.00028767,30]
[329987644,1718899957657,-971.91433476,0.00028767,30]
[329987645,1718899957683,-1579.62,0.00028812,30]
[329987646,1718899957711,-971.91433476,0.00028877,30]
[329987647,1718899957737,-237.74,0.00028904,30]
[329987648,1718899957765,-971.91433476,0.00029014,30]
[329987649,1718899957792,-200.0,0.00029023,120]
[329987650,1718899957818,-237.74,0.00029041,30]
[329987651,1718899957844,-1000.0,0.00029097,120]
[329987652,1718899957870,-971.91433476,0.00029123,30]
[329987653,1718899957896,-237.74,0.00029178,30]
[329987654,1718899957922,-971.91433476,0.00029233,30]
[329987655,1718899957946,-237.74,0.00029315,30]
[329987656,1718899957970,-971.91433476,0.0002937,30]
[329987657,1718899957993,-200.0,0.00029401,120]
[329987658,1718899958018,-237.74,0.00029452,30]
[329987659,1718899958044,-971.91433476,0.00029479,30]
[329987660,1718899958070,-237.74,0.00029589,30]
[329987661,1718899958095,-971.91433476,0.00029589,30]
[329987662,1718899958120,-237.74,0.00029726,30]
[329987663,1718899958144,-971.91433476,0.00029726,30]
[329987664,1718899958172,-226.252467,0.00029779,120]
[329987665,1718899958197,-237.74,0.00029863,30]
[329987666,1718899958222,-1000.0,0.00029872,120]
[329987667,1718899958246,-1340006.68059521,0.0002988,30]
[329987668,1718899958270,-150.0,0.00029966,120]
[329987669,1718899958300,-1145.33869237,0.00029999,30]
[329987670,1718899958323,-237.74,0.00029999,30]
[329987671,1718899958348,-14060.285383,0.0003,30]
[329987672,1718899958372,-662.65384116,0.0003,120]
[329987673,1718899958397,-217.91,0.0003,120]
[329987674,1718899958422,-907.88087586,0.0003,120]
[329987675,1718899958447,-1851.25306733,0.0003,120]
[329987676,1718899958471,-654.93966272,0.0003,120]
[329987677,1718899958495,-251.21961889,0.0003,30]
[329987678,1718899958521,-1000.0,0.0003,120]
[329987679,1718899958550,-2167.89962141,0.0003,30]
[329987680,1718899958573,-791.8074781,0.0003,120]
[329987681,1718899958598,-200.0,0.0003,30]
[329987682,1718899958628,-156.94,0.0003,31]
[329987683,1718899958654,-156.94,0.0003,31]
[329987684,1718899958678,-156.94,0.0003,31]
[329987685,1718899958704,-237.74,0.00030136,30]
[329987686,1718899958728,-200.0,0.00030137,60]
[329987687,1718899958753,-237.74,0.00030273,30]
[329987688,1718899958778,-237.74,0.0003041,30]
[329987689,1718899958808,-2416.0,0.00030439,120]
[329987690,1718899958834,-237.83666358,0.00030547,30]
[329987691,1718899958858,-1000.0,0.00030647,120]
[329987692,1718899958883,-250.0,0.000308,30]
[329987693,1718899958909,-156.94,0.000309,31]
[329987694,1718899958932,-669.76145007,0.00031,120]
[329987695,1718899958958,-1000.0,0.00031421,120]
[329987696,1718899958983,-375.0,0.00031424,120]
[329987697,1718899959010,-156.94,0.000317,31]
[329987698,1718899959038,-1403.38885966,0.00032,60]
[329987699,1718899959062,-5907.625,0.00032,30]
[329987700,1718899959087,-1000.0,0.00032,120]
[329987701,1718899959111,-449.13248754,0.00032,120]
[329987702,1718899959135,-1132.64037958,0.00032,120]
[329987703,1718899959160,-1000.0,0.00032196,120]
[329987704,1718899959185,-259.81106924,0.00032393,40]
[329987705,1718899959212,-156.94,0.000326,31]
[329987706,1718899959238,-375.0,0.00032811,120]
[329987707,1718899959266,-418.86116168,0.00032876,30]
[329987708,1718899959300,-841.03,0.00032876,120]
[329987709,1718899959325,-841.03,0.00032876,120]
[329987710,1718899959350,-841.03,0.00032876,120]
[329987711,1718899959374,-841.03,0.00032876,120]
[329987712,1718899959398,-841.03,0.00032876,120]
[329987713,1718899959423,-841.03,0.00032876,120]
[329987714,1718899959447,-841.03,0.00032876,120]
[329987715,1718899959472,-841.03,0.00032876,120]
[329987716,1718899959496,-841.03,0.00032876,120]
[329987717,1718899959520,-841.03,0.00032876,120]
[329987718,1718899959547,-841.03,0.00032876,120]
[329987719,1718899959572,-841.03,0.00032876,120]
[329987720,1718899959601,-841.03,0.00032876,120]
[329987721,1718899959628,-841.03,0.00032876,120]
[329987722,1718899959656,-841.03,0.00032876,120]
[329987723,1718899959683,-841.03,0.00032876,120]
[329987724,1718899959709,-841.03,0.00032876,120]
[329987725,1718899959736,-841.03,0.00032876,120]
[329987726,1718899959762,-841.03,0.00032876,120]
[329987727,1718899959791,-841.03,0.00032876,120]
[329987728,1718899959817,-841.03,0.00032876,120]
[329987729,1718899959844,-841.03,0.00032876,120]
[329987730,1718899959870,-841.03,0.00032876,120]
[329987731,1718899959896,-841.19804438,0.00032876,120]
[329987732,1718899959922,-200.0,0.00032877,60]
[329987733,1718899959949,-932.99763953,0.000329,30]
[329987734,1718899959976,-1000.0,0.0003297,120]
[329987735,1718899960002,-2691.17274091,0.00032978,34]
[329987736,1718899960027,-159.07806983,0.00033,120]
[329987737,1718899960054,-3000.0,0.00033,30]
[329987738,1718899960079,-500.0,0.00033,120]
[329987739,1718899960104,-3690.2,0.00033151,120]
[329987740,1718899960131,-150.0,0.00033444,120]
[329987741,1718899960156,-500.0,0.000335,120]
[329987742,1718899960429,-156.94,0.000335,31]
[329987743,1718899960457,-500.0,0.00033617,30]
[329987744,1718899960481,-500.0,0.00033617,30]
[329987745,1718899960507,-558.0,0.00033617,30]
[329987746,1718899960531,-1000.0,0.00033745,120]
[329987747,1718899960562,-1579.62,0.00033793,30]
[329987748,1718899960588,-150.0,0.00033878,120]
[329987749,1718899960618,-1000.0,0.00034,120]
[329987750,1718899960646,-1000.0,0.00034,120]
[329987751,1718899960671,-1250.0,0.00034,120]
[329987752,1718899960696,-500.0,0.00034,120]
[329987753,1718899960722,-661.2581938,0.00034,120]
[329987754,1718899960747,-4776.74,0.00034,90]
[329987755,1718899960773,-150.0,0.00034044,120]
[329987756,1718899960800,-375.0,0.00034197,120]
[329987757,1718899960825,-2011.0,0.00034247,30]
[329987758,1718899960850,-500.0,0.000345,120]
[329987759,1718899960876,-1000.0,0.0003452,120]
[329987760,1718899960900,-911907.99999999,0.000348,30]
[329987761,1718899960924,-23882.16364394,0.000348,30]
[329987762,1718899960949,-150.0,0.0003495,120]
[329987763,1718899960974,-215.29058549,0.00034999,120]
[329987764,1718899960998,-274.59372863,0.00035,30]
[329987765,1718899961022,-914.92446075,0.00035,30]
[329987766,1718899961048,-2161.1861094,0.00035,120]
[329987767,1718899961073,-1394.22987419,0.00035,30]
[329987768,1718899961096,-1000.0,0.00035,30]
[329987769,1718899961119,-1000.0,0.00035,30]
[329987770,1718899961142,-1000.0,0.00035,30]
[329987771,1718899961164,-1000.0,0.00035,30]
[329987772,1718899961188,-1000.0,0.00035,30]
[329987773,1718899961211,-1000.0,0.00035,30]
[329987774,1718899961234,-1000.0,0.00035,30]
[329987775,1718899961257,-1000.0,0.00035,30]
[329987776,1718899961279,-1000.0,0.00035,30]
[329987777,1718899961304,-1000.0,0.00035,30]
[329987778,1718899961327,-1000.0,0.00035,30]
[329987779,1718899961349,-1000.0,0.00035,30]
[329987780,1718899961372,-1000.0,0.00035,30]
[329987781,1718899961394,-1000.0,0.00035,30]
[329987782,1718899961424,-1000.0,0.00035,30]
[329987783,1718899961450,-1000.0,0.00035,30]
[329987784,1718899961475,-1000.0,0.00035,30]
[329987785,1718899961500,-1000.0,0.00035,30]
[329987786,1718899961525,-1000.0,0.00035,30]
[329987787,1718899961552,-1000.0,0.00035,30]
[329987788,1718899961577,-1000.0,0.00035,30]
[329987789,1718899961605,-1000.0,0.00035,30]
[329987790,1718899961631,-1000.0,0.00035,30]
[329987791,1718899961657,-1000.0,0.00035,30]
[329987792,1718899961682,-1000.0,0.00035,30]
[329987793,1718899961706,-1000.0,0.00035,30]
[329987794,1718899961731,-1000.0,0.00035,30]
[329987795,1718899961754,-1000.0,0.00035,30]
[329987796,1718899961779,-1000.0,0.00035,30]
[329987797,1718899961806,-1000.0,0.00035,30]
[329987798,1718899961830,-944.36651653,0.00035,30]
[329987799,1718899961855,-500.0,0.00035,120]
[329987800,1718899961880,-22572.04461312,0.00035,30]
[329987801,1718899961904,-154.34023003,0.00035,120]
[329987802,1718899961928,-200.0,0.00035,120]
[329987803,1718899961951,-2607.9385608,0.00035,30]
[329987804,1718899961976,-500.0,0.00035,120]
[329987805,1718899961999,-1067.20759662,0.00035,120]
[329987806,1718899962023,-2000.0,0.00035,30]
[329987807,1718899962047,-6000.0,0.00035,60]
[329987808,1718899962070,-1000.0,0.00035294,120]
[329987809,1718899962093,-171.7,0.00035342,91]
[329987810,1718899962121,-500.0,0.000355,120]
[329987811,1718899962145,-375.0,0.00035583,120]
[329987812,1718899962170,-1954.9,0.00035616,90]
[329987813,1718899962195,-1954.9,0.00035616,90]
[329987814,1718899962219,-1954.9,0.00035616,90]
[329987815,1718899962243,-1954.9,0.00035616,90]
[329987816,1718899962268,-1954.9,0.00035616,90]
[329987817,1718899962291,-1954.9,0.00035616,90]
[329987818,1718899962313,-1954.9,0.00035616,90]
[329987819,1718899962336,-1954.9,0.00035616,90]
[329987820,1718899962359,-1954.9,0.00035616,90]
[329987821,1718899962383,-1954.9,0.00035616,90]
[329987822,1718899962407,-1954.9,0.00035616,90]
[329987823,1718899962430,-1954.9,0.00035616,90]
[329987824,1718899962453,-1954.9,0.00035616,90]
[329987825,1718899962476,-1954.9,0.00035616,90]
[329987826,1718899962499,-1954.9,0.00035616,90]
[329987827,1718899962523,-1954.9,0.00035616,90]
[329987828,1718899962548,-1954.9,0.00035616,90]
[329987829,1718899962572,-1954.9,0.00035616,90]
[329987830,1718899962601,-1954.9,0.00035616,90]
[329987831,1718899962626,-1954.9,0.00035616,90]
[329987832,1718899962652,-1954.9,0.00035616,90]
[329987833,1718899962677,-1954.9,0.00035616,90]
[329987834,1718899962702,-1954.9,0.00035616,90]
[329987835,1718899962727,-1955.04169191,0.00035616,90]
[329987836,1718899962751,-205.17345318,0.00035616,60]
[329987837,1718899962775,-1000.0,0.00035616,30]
[329987838,1718899962803,-1000.0,0.00035805,30]
[329987839,1718899962827,-1000.0,0.00035994,30]
[329987840,1718899962851,-433.28561081,0.00036,60]
[329987841,1718899962876,-700.0,0.00036,120]
[329987842,1718899962899,-3000.0,0.00036,30]
[329987843,1718899962923,-1000.0,0.00036,120]
[329987844,1718899962948,-500.0,0.00036,120]
[329987845,1718899962975,-20000.0,0.00036,30]
[329987846,1718899963200,-1000.0,0.00036069,120]
[329987847,1718899963226,-1000.0,0.00036183,30]
[329987848,1718899963252,-1000.0,0.00036372,30]
[329987849,1718899963276,-500.0,0.000365,120]
[329987850,1718899963300,-1000.0,0.00036561,30]
[329987851,1718899963323,-1000.0,0.0003675,30]
[329987852,1718899963347,-1000.0,0.00036843,120]
[329987853,1718899963372,-1000.0,0.00036939,30]
[329987854,1718899963397,-1499.999999,0.00037,30]
[329987855,1718899963420,-264.18355578,0.00037,120]
[329987856,1718899963444,-1090.0,0.00037,120]
[329987857,1718899963468,-250.20555929,0.00037,120]
[329987858,1718899963491,-418331.08220611,0.00037,30]
[329987859,1718899964011,263.2201441,0.00010934,2]
[329987860,1718899967751,-181668.91779389,0.00037,30]
[329987861,1718899967775,-56361.0,0.000371,30]
[329987862,1718899967803,-1000.0,0.00037128,30]
[329987863,1718899967828,-1000.0,0.00037317,30]
[329987864,1718899967853,-10000.0,0.000375,30]
[329987865,1718899967878,-1000.0,0.00037506,30]
[329987866,1718899967902,-1000.0,0.00037618,120]
[329987867,1718899967925,-2000.0,0.00037684,30]
[329987868,1718899967948,-1000.0,0.00037695,30]
[329987869,1718899967972,-2006.50410384,0.000378,70]
[329987870,1718899967995,-3029.45596801,0.000378,61]
[329987871,1718899968020,-1000.0,0.00037884,30]
[329987872,1718899968044,-150.0,0.00037887,120]
[329987873,1718899968068,-5423.0,0.00037897,30]
[329987874,1718899968091,-5264.07072568,0.000379,30]
[329987875,1718899968114,-409.41908996,0.00037986,90]
[329987876,1718899968138,-2632.0,0.00037989,42]
[329987877,1718899968165,-757.72489951,0.00038,60]
[329987878,1718899968192,-1785.65831798,0.00038,30]
[329987879,1718899968216,-248085.62797264,0.00038,30]
[329987880,1718899968240,-104570.50099589,0.00038,30]
[329987881,1718899968262,-1150.0,0.00038,120]
[329987882,1718899968288,-300.01887457,0.00038,120]
[329987883,1718899968311,-388.384325,0.00038,30]
[329987884,1718899968334,-1000.0,0.00038,120]
[329987885,1718899968357,-1318.92647002,0.00038,120]
[329987886,1718899968382,-1000.0,0.00038073,30]
[329987887,1718899968405,-152.86923673,0.00038148,30]
[329987888,1718899968428,-1000.0,0.00038262,30]
[329987889,1718899968453,-151.0,0.000383,36]
[329987890,1718899968478,-1033.57119,0.00038393,120]
[329987891,1718899968503,-318.10003711,0.000384,33]
[329987892,1718899968528,-231266.44470986,0.000384,33]
[329987893,1718899968557,-678.22588695,0.000384,120]
[329987894,1718899968583,-1000.0,0.00038451,30]
[329987895,1718899968611,-150.0,0.00038499,120]
[329987896,1718899968635,-3910.01297309,0.000385,30]
[329987897,1718899968660,-150.0,0.00038515,120]
[329987898,1718899968685,-1000.0,0.0003864,30]
[329987899,1718899968710,-595.54722191,0.000387,30]
[329987900,1718899968733,-450.0,0.0003874,30]
[329987901,1718899968756,-1579.62,0.00038775,30]
[329987902,1718899968781,-3049.32167074,0.000388,45]
[329987903,1718899968807,-1000.0,0.00038829,30]
[329987904,1718899968831,-737.66089772,0.000389,30]
[329987905,1718899968856,-150.0,0.00038905,120]
[329987906,1718899968883,-5299.999999,0.00038987,31]
[329987907,1718899968908,-1444.11232704,0.00039,30]
[329987908,1718899968933,-11986.0,0.00039,30]
[329987909,1718899968957,-1000.0,0.00039017,30]
[329987910,1718899968980,-1000.0,0.00039206,30]
[329987911,1718899969004,-1000.0,0.00039395,30]
[329987912,1718899969027,-566.13669727,0.000394,30]
[329987913,1718899969050,-1000.0,0.00039584,30]
[329987914,1718899969073,-377.85913209,0.000397,60]
[329987915,1718899969096,-1000.0,0.00039773,30]
[329987916,1718899969120,-322.22936002,0.000398,30]
[329987917,1718899969142,-966796.27419453,0.000398,30]
[329987918,1718899969166,-253.79729302,0.0003985,30]
[329987919,1718899969190,-2863.65786684,0.000399,30]
[329987920,1718899969214,-1000.0,0.00039962,30]
[329987921,1718899969240,-670.68993554,0.0003998,30]
[329987922,1718899969262,-250.0,0.00039999,30]
[329987923,1718899969289,-50000.0,0.0004,30]
[329987924,1718899969314,-2500.0,0.0004,30]
[329987925,1718899969337,-1118.0,0.0004,30]
[329987926,1718899969360,-1041.10925239,0.0004,32]
[329987927,1718899969383,-579.1598679,0.0004,30]
[329987928,1718899969405,-336.89433921,0.0004,30]
[329987929,1718899969428,-300.0,0.0004,30]
[329987930,1718899969451,-500.0,0.0004,30]
[329987931,1718899969474,-500.0,0.0004,30]
[329987932,1718899969498,-500.0,0.0004,30]
[329987933,1718899969521,-500.0,0.0004,30]
[329987934,1718899969544,-500.0,0.0004,30]
[329987935,1718899969566,-500.0,0.0004,30]
[329987936,1718899969589,-500.0,0.0004,30]
[329987937,1718899969618,-500.0,0.0004,30]
[329987938,1718899969643,-500.0,0.0004,30]
[329987939,1718899969665,-196.0,0.0004,30]
[329987940,1718899969690,-8000.0,0.0004,32]
[329987941,1718899969714,-82819.33593152,0.0004,30]
[329987942,1718899969737,-62709.38795295,0.0004,30]
[329987943,1718899969761,-270753.80208205,0.0004,30]
[329987944,1718899969786,-29129.0,0.0004,30]
[329987945,1718899969812,-3509.88,0.0004,30]
[329987946,1718899969838,-2582.6630621,0.0004,30]
[329987947,1718899969861,-477.12749073,0.0004,30]
[329987948,1718899969884,-807.60675132,0.0004,30]
[329987949,1718899969907,-150387.63619602,0.0004,30]
[329987950,1718899969930,-520.18115998,0.0004,60]
[329987951,1718899969955,-151.0,0.0004,120]
[329987952,1718899969979,-168.65555556,0.0004,120]
[329987953,1718899970004,-2500.0,0.0004,120]
[329987954,1718899970027,-1050.0,0.0004,120]
[329987955,1718899970050,-604.54618316,0.0004,120]
[329987956,1718899970073,-216.97538599,0.0004,120]
[329987957,1718899970096,-1400.734219,0.0004,30]
[329987958,1718899970123,-905.77419498,0.0004,120]
[329987959,1718899970146,-346.64474074,0.0004,30]
[329987960,1718899970348,-1014.67587517,0.0004,60]
[329987961,1718899970372,-500.0,0.0004,120]
[329987962,1718899970396,-500.0,0.0004,120]
[329987963,1718899970418,-500.0,0.0004,120]
[329987964,1718899970441,-500.0,0.0004,120]
[329987965,1718899970464,-500.0,0.0004,120]
[329987966,1718899970488,-500.0,0.0004,120]
[329987967,1718899970512,-500.0,0.0004,120]
[329987968,1718899970534,-261.04,0.0004,120]
[329987969,1718899970558,-1000.0,0.0004,120]
[329987970,1718899970583,-1500.0,0.0004,30]
[329987971,1718899970611,-360.10571672,0.0004,120]
[329987972,1718899970635,-705.991,0.0004,120]
[329987973,1718899970659,-328.631996,0.0004,120]
[329987974,1718899970685,-3097.0,0.0004,120]
[329987975,1718899970709,-712.94391332,0.0004,30]
[329987976,1718899970733,-3000.0,0.0004,55]
[329987977,1718899970757,-3000.0,0.0004,55]
[329987978,1718899970781,-8351.77943225,0.0004,40]
[329987979,1718899970807,-2369.0,0.0004,120]
[329987980,1718899970830,-2435.7,0.0004,30]
[329987981,1718899970856,-200.0,0.0004,120]
[329987982,1718899970879,-1570.95542867,0.0004,120]
[329987983,1718899970904,-12011.61356326,0.0004,120]
[329987984,1718899970930,-278.26,0.0004,120]
[329987985,1718899970954,-4120.78,0.0004,120]
[329987986,1718899970979,-394.74554032,0.0004001,30]
[329987987,1718899971004,-1451.05905,0.00040088,30]
[329987988,1718899971028,-1000.0,0.00040151,30]
[329987989,1718899971052,-360.38426582,0.0004025,120]
[329987990,1718899971075,-770.56372261,0.0004025,120]
[329987991,1718899971098,-1451.05905,0.00040288,30]
[329987992,1718899971123,-1000.0,0.0004034,30]
[329987993,1718899971146,-1451.05905,0.00040488,30]
[329987994,1718899971169,-1000.0,0.00040529,30]
[329987995,1718899971193,-1451.05905,0.00040688,30]
[329987996,1718899971218,-3045.0,0.000407,81]
[329987997,1718899971241,-168.65555556,0.00040712,120]
[329987998,1718899971264,-1000.0,0.00040718,30]
[329987999,1718899971288,-895.376532,0.000408,30]
[329988000,1718899971313,-160.029827,0.000408,30]
[329988001,1718899971338,-1440.268453,0.000408,30]
[329988002,1718899971362,-2880.536897,0.000408,30]
[329988003,1718899971385,-1920.357932,0.000408,30]
[329988004,1718899971410,-16000.0,0.0004084,30]
[329988005,1718899971434,-1239.45983696,0.000409,120]
[329988006,1718899971458,-153.29636872,0.000409,120]
[329988007,1718899971482,-153.29636871,0.000409,120]
[329988008,1718899971507,-153.29636871,0.000409,120]
[329988009,1718899971530,-153.29636871,0.000409,120]
[329988010,1718899971556,-153.29636871,0.000409,120]
[329988011,1718899971580,-153.29636871,0.000409,120]
[329988012,1718899971606,-153.29636871,0.000409,120]
[329988013,1718899971636,-153.29636871,0.000409,120]
[329988014,1718899971662,-1000.0,0.00040907,30]
[329988015,1718899971688,-676.98362103,0.00040995,120]
[329988016,1718899971714,-177.29659807,0.00040999,40]
[329988017,1718899971739,-207.92733243,0.00040999,40]
[329988018,1718899971764,-467.94435689,0.00040999,40]
[329988019,1718899971793,-788.93533055,0.00040999,40]
[329988020,1718899971819,-3159.60293182,0.00040999,40]
[329988021,1718899971844,-452.80545858,0.00040999,40]
[329988022,1718899971869,-5397.0,0.00040999,40]
[329988023,1718899971895,-50000.0,0.00041,31]
[329988024,1718899971921,-121942.61832186,0.00041,30]
[329988025,1718899971944,-2000.0,0.00041,30]
[329988026,1718899971968,-1067.53943558,0.00041,60]
[329988027,1718899971991,-162420.42944379,0.00041,40]
[329988028,1718899972139,279.35630974,0.00010934,2]
[329988029,1718899972162,20017.06632401,0.00010934,2]
[329988030,1718899972231,2000.0,0.00027444,30]
[329988031,1718899972590,2000.0,0.00027444,30]
[329988032,1718899972698,2000.0,0.00027444,30]
[329988033,1718899972861,888.6,0.00027444,30]
[329988034,1718899973311,263.2201441,0.00010934,2]
[329988035,1718899979143,-269.211,0.00040089,30]
[329988036,1718899979168,-837579.57055621,0.00041,40]
[329988037,1718899979192,-98691.8027168,0.00041,120]
[329988038,1718899979215,-574.84372257,0.00041,120]
[329988039,1718899979239,-776.17705651,0.00041,120]
[329988040,1718899979264,-376.99,0.00041,120]
[329988041,1718899979289,-2500.0,0.00041,120]
[329988042,1718899979316,-3000.0,0.00041,120]
[329988043,1718899979339,-5700.0,0.00041,30]
[329988044,1718899979363,-2467.01194673,0.00041,30]
[329988045,1718899979386,-152.0,0.00041041,31]
[329988046,1718899979411,-152.0,0.00041041,31]
[329988047,1718899979434,-152.0,0.00041041,31]
[329988048,1718899979457,-152.0,0.00041041,31]
[329988049,1718899979481,-2400.07943998,0.00041058,120]
[329988050,1718899979504,-1451.05905,0.00041088,30]
[329988051,1718899979527,-510.0,0.00041095,120]
[329988052,1718899979552,-1510.98594257,0.00041096,30]
[329988053,1718899979577,-151.0,0.00041123,120]
[329988054,1718899979605,-1451.05905,0.00041288,30]
[329988055,1718899979629,-510.0,0.00041369,120]
[329988056,1718899979655,-168.65555556,0.00041425,120]
[329988057,1718899979681,-1451.05905,0.00041488,30]
[329988058,1718899979705,-2500.0,0.000415,120]
[329988059,1718899979729,-510.0,0.00041643,120]
[329988060,1718899979753,-1451.05905,0.00041688,30]
[329988061,1718899979777,-499999.99999,0.0004188,30]
[329988062,1718899979802,-687.72124051,0.000419,111]
[329988063,1718899979825,-637.43180174,0.000419,120]
[329988064,1718899979850,-159.24057205,0.000419,120]